fUSD/lending_fUSD_20251226
["ID","MTS","AMOUNT","RATE_DAILY","PERIOD"]
[399839539,1766729431767,-3833.23208628,0.00014294,2]
[399839540,1766729431777,-150.0,0.00014602,2]
[399839541,1766729431787,-1200.0,0.00014666,2]
[399839542,1766729431798,-300.0,0.00014666,2]
[399839543,1766729431808,-300.0,0.00014666,2]
[399839544,1766729431818,-1200.0,0.00014666,2]
[399839545,1766729431827,-795.68895294,0.00014667,2]
[399839546,1766729431837,-300.0,0.00014667,2]
[399839547,1766729431847,-250.0,0.00014667,2]
[399839548,1766729431857,-195.0,0.00014667,2]
[399839549,1766729431867,-300.0,0.00014667,2]
[399839550,1766729431877,-195.0,0.00014667,2]
[399839551,1766729431887,-188.78,0.00014724,2]
[399839552,1766729431897,-872.06,0.00014739,2]
[399839553,1766729431907,-872.06,0.00014739,2]
[399839554,1766729431917,-872.06,0.00014739,2]
[399839555,1766729431927,-872.06,0.00014739,2]
[399839556,1766729431937,-872.06,0.00014739,2]
[399839557,1766729431947,-173.05731677,0.0001474,2]
[399839558,1766729431957,-150.0,0.00014747,2]
[399839559,1766729431967,-399.0301425,0.00014748,2]
[399839560,1766729431977,-500.0,0.00014748,2]
[399839561,1766729431988,-241.60551601,0.00014748,2]
[399839562,1766729431998,-500.0,0.00014748,2]
[399839563,1766729432008,-500.0,0.00014748,2]
[399839564,1766729432019,-500.0,0.00014748,2]
[399839565,1766729432029,-328.5132583,0.00014748,2]
[399839566,1766729432038,-500.0,0.00014748,2]
[399839567,1766729432048,-500.0,0.00014748,2]
[399839568,1766729432059,-500.0,0.00014748,2]
[399839569,1766729432069,-500.0,0.00014748,2]
[399839570,1766729432079,-500.0,0.00014748,2]
[399839571,1766729432089,-500.0,0.00014748,2]
[399839572,1766729432099,-500.0,0.00014748,2]
[399839573,1766729432110,-500.0,0.00014748,2]
[399839574,1766729432121,-500.0,0.00014748,2]
[399839575,1766729432130,-500.0,0.00014748,2]
[399839576,1766729432140,-500.0,0.00014748,2]
[399839577,1766729432151,-500.0,0.00014748,2]
[399839578,1766729432161,-500.0,0.00014748,2]
[399839579,1766729432171,-591.85411049,0.00014748,2]
[399839580,1766729432181,-500.0,0.00014748,2]
[399839581,1766729432192,-500.0,0.00014748,2]
[399839582,1766729432202,-500.0,0.00014748,2]
[399839583,1766729432212,-500.0,0.00014748,2]
[399839584,1766729432222,-500.0,0.00014748,2]
[399839585,1766729432232,-500.0,0.00014748,2]
[399839586,1766729432242,-55846.37167991,0.00014749,2]
[399839587,1766729432259,-351.80482366,0.00014749,2]
[399839588,1766729432276,-1112.30432406,0.00014749,2]
[399839606,1766729437629,-1349.90711029,0.00014749,2]
[399839607,1766729437643,-3298.20270092,0.00014749,2]
[399839608,1766729437797,-2226.80422312,0.00014749,2]
[399839609,1766729437810,-50250.80055339,0.00014749,2]
[399839610,1766729437822,-510.45266944,0.00014749,2]
[399839611,1766729437860,-568152.64427797,0.00014749,2]
[399839612,1766729437872,-9050.06184128,0.00014749,2]
[399839617,1766729439930,-1.7e-07,0.00014749,2]
[399839618,1766729439946,-307850.64579579,0.00014749,2]
[399839619,1766729439956,-1002.09708591,0.00014847,2]
[399839620,1766729439966,-10116.76,0.00014848,2]
[399839621,1766729439976,-150.99,0.00014848,2]
[399839622,1766729439987,-150.99,0.00014848,2]
[399839623,1766729439997,-499.99,0.00014848,2]
[399839624,1766729440007,-999.99,0.00014848,2]
[399839625,1766729440017,-705.83,0.00014848,2]
[399839626,1766729440027,-299.99,0.00014848,2]
[399839627,1766729440037,-425.3,0.00014848,2]
[399839628,1766729440047,-9999.99,0.00014848,2]
[399839629,1766729440057,-9999.99,0.00014848,2]
[399839630,1766729440067,-166.14,0.00014848,2]
[399839631,1766729440077,-240.76,0.00014849,2]
[399839632,1766729440087,-500.0,0.0001485,2]
[399839633,1766729440097,-500.0,0.0001485,2]
[399839634,1766729440107,-500.0,0.0001485,2]
[399839635,1766729440116,-500.0,0.0001485,2]
[399839636,1766729440126,-510.57439861,0.0001485,2]
[399839637,1766729440135,-500.0,0.0001485,2]
[399839638,1766729440149,-546.74327399,0.0001485,2]
[399839639,1766729440159,-500.0,0.0001485,2]
[399839640,1766729440169,-500.0,0.0001485,2]
[399839641,1766729440179,-500.0,0.0001485,2]
[399839642,1766729440189,-500.0,0.0001485,2]
[399839643,1766729440200,-457.42264736,0.0001485,2]
[399839644,1766729440210,-1037.077,0.0001485,2]
[399839645,1766729440220,-168.18799134,0.0001485,2]
[399839647,1766729440231,-1867.8794202,0.0001485,2]
[399839648,1766729440243,-4599.49012891,0.0001485,2]
[399839649,1766729440254,-500.0,0.0001485,2]
[399839650,1766729440268,-500.0,0.0001485,2]
[399839651,1766729440278,-564.82523099,0.0001485,2]
[399839652,1766729440288,-1865.87,0.00014947,2]
[399839653,1766729440299,-204.74,0.0001498,2]
[399839654,1766729440309,-11446.12,0.00014987,2]
[399839655,1766729440319,-1867.87942019,0.00015078,2]
[399839656,1766729440332,-4599.4901289,0.00015078,2]
[399839657,1766729440342,-240.76,0.00015123,2]
[399839658,1766729440352,-168.18799133,0.0001526,2]
[399839659,1766729440362,-200.0,0.00015272,2]
[399839660,1766729440372,-150.0,0.00015288,2]
[399839661,1766729440381,-150.0,0.00015288,2]
[399839662,1766729440391,-150.0,0.00015288,2]
[399839663,1766729440401,-150.0,0.00015288,2]
[399839664,1766729440411,-150.0,0.00015288,2]
[399839665,1766729440421,-150.0,0.00015288,2]
[399839666,1766729440431,-152.42122212,0.00015288,2]
[399839667,1766729440442,-150.0,0.00015288,2]
[399839668,1766729440451,-150.0,0.00015288,2]
[399839669,1766729440461,-1867.87942019,0.00015306,2]
[399839670,1766729440471,-4599.4901289,0.00015306,2]
[399839671,1766729440482,-150.0,0.00015351,2]
[399839672,1766729440492,-1000.0,0.00015375,2]
[399839673,1766729440502,-200.0,0.00015395,2]
[399839674,1766729440512,-240.76,0.00015397,2]
[399839675,1766729440530,-150.0,0.00015413,2]
[399839676,1766729440548,-150.0,0.00015476,2]
[399839677,1766729440557,-151.0,0.0001549,2]
[399839678,1766729440567,-1867.87942019,0.00015533,2]
[399839679,1766729440577,-4599.4901289,0.00015533,2]
[399839680,1766729440587,-150.0,0.00015539,2]
[399839681,1766729440597,-150.0,0.00015602,2]
[399839682,1766729440607,-150.0,0.00015627,2]
[399839683,1766729440617,-150.0,0.00015665,2]
[399839684,1766729440627,-168.18799133,0.0001567,2]
[399839685,1766729440637,-240.76,0.00015671,2]
[399839686,1766729440648,-2259.0,0.00015678,2]
[399839687,1766729440658,-155.32,0.00015691,2]
[399839688,1766729440668,-150.0,0.00015728,2]
[399839689,1766729440679,-1867.87942019,0.00015761,2]
[399839690,1766729440689,-4599.4901289,0.00015761,2]
[399839691,1766729440699,-1942.27,0.00015771,2]
[399839692,1766729440709,-150.0,0.00015791,2]
[399839693,1766729440720,-150.0,0.00015854,2]
[399839694,1766729440730,-150.0,0.00015854,2]
[399839695,1766729440740,-150.0,0.00015854,2]
[399839696,1766729440750,-255.0,0.00015868,2]
[399839697,1766729440760,-150.0,0.00015917,2]
[399839698,1766729440770,-240.78161914,0.00015945,2]
[399839699,1766729440888,-150.0,0.00015967,2]
[399839700,1766729440898,-150.0,0.0001598,2]
[399839701,1766729440908,-1867.87942019,0.00015989,2]
[399839702,1766729440918,-4599.4901289,0.00015989,2]
[399839703,1766729440929,-150.0,0.00016043,2]
[399839704,1766729440939,-420.0,0.00016057,2]
[399839705,1766729440948,-420.0,0.00016057,2]
[399839706,1766729440958,-168.0,0.00016065,2]
[399839707,1766729440967,-168.18799133,0.0001608,2]
[399839708,1766729440977,-150.0,0.00016106,2]
[399839709,1766729440988,-6507.64,0.00016116,2]
[399839710,1766729440997,-1680.0,0.00016133,2]
[399839711,1766729441007,-150.0,0.00016137,2]
[399839712,1766729441017,-150.0,0.00016137,2]
[399839713,1766729441027,-500.0,0.00016149,2]
[399839714,1766729441037,-500.0,0.00016149,2]
[399839715,1766729441046,-500.0,0.00016149,2]
[399839716,1766729441057,-500.0,0.00016149,2]
[399839717,1766729441067,-500.0,0.00016149,2]
[399839718,1766729441077,-500.0,0.00016149,2]
[399839719,1766729441087,-500.0,0.00016149,2]
[399839720,1766729441098,-500.0,0.00016149,2]
[399839721,1766729441108,-574.12855637,0.00016149,2]
[399839722,1766729441118,-500.0,0.00016149,2]
[399839723,1766729441128,-500.0,0.00016149,2]
[399839724,1766729441139,-500.0,0.00016149,2]
[399839725,1766729441149,-620.0,0.00016149,2]
[399839726,1766729441160,-151.0,0.00016149,2]
[399839727,1766729441170,-322.6107,0.00016149,2]
[399839728,1766729441181,-150.0,0.00016168,2]
[399839729,1766729441191,-150.0,0.00016178,2]
[399839730,1766729441200,-3872.14450341,0.00016183,2]
[399839731,1766729441215,-279.92160861,0.00016183,2]
[399839732,1766729441225,-200.27562112,0.00016183,2]
[399839733,1766729441234,-500.76420326,0.00016183,2]
[399839734,1766729441244,-500.0,0.00016183,2]
[399839735,1766729441255,-500.0,0.00016183,2]
[399839736,1766729441268,-500.0,0.00016183,2]
[399839737,1766729441278,-500.40933379,0.00016183,2]
[399839738,1766729441288,-230.98283811,0.00016183,2]
[399839739,1766729441300,-333.75918667,0.00016183,2]
[399839740,1766729441310,-500.0,0.00016183,2]
[399839741,1766729441321,-500.0,0.00016183,2]
[399839742,1766729441331,-500.0,0.00016183,2]
[399839743,1766729441342,-168.40038853,0.00016183,2]
[399839744,1766729441353,-500.89852069,0.00016183,2]
[399839745,1766729441363,-206.77102158,0.00016183,2]
[399839746,1766729441374,-500.0,0.00016183,2]
[399839747,1766729441385,-500.88737108,0.00016183,2]
[399839748,1766729441395,-501.0445462,0.00016183,2]
[399839749,1766729441407,-590.62865017,0.00016183,2]
[399839750,1766729441417,-331.00488176,0.00016183,2]
[399839751,1766729441427,-160.69712544,0.00016183,2]
[399839752,1766729441436,-500.0,0.00016183,2]
[399839753,1766729441446,-168.0,0.00016187,2]
[399839754,1766729441456,-150.0,0.00016192,2]
[399839755,1766729441466,-1867.87942019,0.00016217,2]
[399839756,1766729441476,-4599.4901289,0.00016217,2]
[399839757,1766729441487,-168.0,0.00016225,2]
[399839758,1766729441497,-150.0,0.00016231,2]
[399839759,1766729441507,-150.0,0.00016294,2]
[399839760,1766729441516,-150.0,0.00016307,2]
[399839761,1766729441526,-168.0,0.00016332,2]
[399839762,1766729441536,-168.0,0.00016347,2]
[399839763,1766729441546,-150.0,0.00016357,2]
[399839764,1766729441557,-162.0,0.0001636,2]
[399839765,1766729441567,-168.0,0.00016383,2]
[399839766,1766729441583,-150.0,0.0001642,2]
[399839767,1766729441594,-150.0,0.0001642,2]
[399839768,1766729441604,-150.0,0.0001642,2]
[399839769,1766729441615,-168.0,0.00016424,2]
[399839770,1766729441627,-293.0,0.00016438,2]
[399839771,1766729441637,-500.0,0.00016438,2]
[399839772,1766729441647,-539.79848624,0.00016438,2]
[399839773,1766729441658,-15435.28,0.00016438,2]
[399839774,1766729441668,-1867.87942019,0.00016444,2]
[399839775,1766729441678,-4599.4901289,0.00016444,2]
[399839776,1766729441688,-150.0,0.00016483,2]
[399839777,1766729441698,-168.18799133,0.0001649,2]
[399839778,1766729441708,-168.0,0.00016493,2]
[399839779,1766729441718,-150.0,0.000165,2]
[399839780,1766729441728,-150.0,0.00016546,2]
[399839781,1766729441738,-168.0,0.00016547,2]
[399839782,1766729441748,-1263.0,0.00016597,2]
[399839783,1766729441758,-150.0,0.00016609,2]
[399839784,1766729441768,-168.0,0.00016632,2]
[399839785,1766729441778,-2430.0,0.00016633,2]
[399839786,1766729441788,-564.0,0.00016633,2]
[399839787,1766729441798,-4808.0,0.00016633,2]
[399839788,1766729441808,-150.0,0.00016647,2]
[399839789,1766729441818,-670.32096566,0.0001666,2]
[399839790,1766729441828,-150.0,0.00016672,2]
[399839791,1766729441838,-1867.87942019,0.00016672,2]
[399839792,1766729441849,-4599.4901289,0.00016672,2]
[399839793,1766729441859,-595.37131296,0.00016697,2]
[399839794,1766729441870,-500.0,0.00016699,2]
[399839795,1766729441880,-500.0,0.00016699,2]
[399839796,1766729441890,-150.0,0.00016699,2]
[399839797,1766729441899,-500.0,0.00016699,2]
[399839798,1766729441909,-500.0,0.00016699,2]
[399839799,1766729441919,-500.0,0.00016699,2]
[399839800,1766729441929,-150.0,0.00016699,2]
[399839801,1766729441943,-150.0,0.00016699,2]
[399839802,1766729441954,-500.0,0.00016699,2]
[399839803,1766729441964,-500.0,0.00016699,2]
[399839804,1766729441974,-150.0,0.00016699,2]
[399839805,1766729441984,-2299.99999702,0.000167,2]
[399839806,1766729441994,-1007.0,0.000167,2]
[399839807,1766729442004,-293.0,0.00016712,2]
[399839808,1766729442014,-500.0,0.00016726,2]
[399839809,1766729442024,-500.0,0.00016726,2]
[399839810,1766729442034,-224.36439977,0.00016726,2]
[399839811,1766729442044,-500.0,0.00016726,2]
[399839812,1766729442055,-500.0,0.00016726,2]
[399839813,1766729442065,-500.0,0.00016726,2]
[399839814,1766729442076,-150.0,0.00016726,2]
[399839815,1766729442086,-150.0,0.00016726,2]
[399839816,1766729442096,-506.76955547,0.00016726,2]
[399839817,1766729442106,-500.0,0.00016726,2]
[399839818,1766729442115,-150.0,0.00016726,2]
[399839819,1766729442125,-516.27997317,0.00016731,2]
[399839820,1766729442138,-500.85707724,0.00016731,2]
[399839821,1766729442147,-1000.0,0.00016731,2]
[399839822,1766729442158,-913.88399981,0.00016731,2]
[399839823,1766729442168,-1000.0,0.00016731,2]
[399839824,1766729442178,-163.47849716,0.00016731,2]
[399839825,1766729442188,-1000.0,0.00016731,2]
[399839826,1766729442199,-511.82107275,0.00016731,2]
[399839827,1766729442210,-150.0,0.00016735,2]
[399839828,1766729442220,-500.0,0.00016754,2]
[399839829,1766729442231,-500.0,0.00016754,2]
[399839830,1766729442241,-274.79963008,0.00016754,2]
[399839831,1766729442251,-500.0,0.00016754,2]
[399839832,1766729442266,-500.0,0.00016754,2]
[399839833,1766729442276,-150.0,0.00016754,2]
[399839834,1766729442285,-283.88330882,0.00016754,2]
[399839835,1766729442297,-211.21504498,0.00016754,2]
[399839836,1766729442307,-1000.0,0.00016761,2]
[399839837,1766729442318,-162.55799377,0.0001677,2]
[399839838,1766729442328,-500.0,0.00016781,2]
[399839839,1766729442344,-500.0,0.00016781,2]
[399839840,1766729442355,-500.0,0.00016781,2]
[399839841,1766729442366,-500.0,0.00016781,2]
[399839842,1766729442376,-150.0,0.00016781,2]
[399839843,1766729442387,-150.0,0.00016798,2]
[399839844,1766729442397,-2031.0,0.000168,2]
[399839845,1766729442408,-500.0,0.00016809,2]
[399839846,1766729442419,-500.0,0.00016809,2]
[399839847,1766729442430,-500.0,0.00016809,2]
[399839848,1766729442441,-551.95789067,0.00016809,2]
[399839849,1766729442453,-150.0,0.00016809,2]
[399839850,1766729442463,-500.0,0.00016836,2]
[399839851,1766729442475,-500.0,0.00016836,2]
[399839852,1766729442486,-500.0,0.00016836,2]
[399839853,1766729442497,-175.83818787,0.00016836,2]
[399839854,1766729442508,-150.0,0.0001686,2]
[399839855,1766729442518,-500.0,0.00016863,2]
[399839856,1766729442529,-500.0,0.00016863,2]
[399839857,1766729442539,-500.0,0.00016863,2]
[399839858,1766729442550,-200.0,0.00016864,2]
[399839859,1766729442560,-164827.23891232,0.00016866,2]
[399839860,1766729442570,-25000.0,0.00016874,3]
[399839861,1766729442580,-500.0,0.00016882,2]
[399839862,1766729442590,-173.61225679,0.00016882,2]
[399839863,1766729442599,-25000.0,0.00016882,3]
[399839864,1766729442610,-224.48359004,0.00016891,2]
[399839865,1766729442621,-500.0,0.00016891,2]
[399839866,1766729442631,-25000.0,0.00016891,3]
[399839867,1766729442641,-10000.0,0.000169,2]
[399839868,1766729442650,-25000.0,0.000169,3]
[399839869,1766729442660,-168.18799133,0.000169,2]
[399839870,1766729442671,-1867.87942019,0.000169,2]
[399839871,1766729442680,-4599.4901289,0.000169,2]
[399839872,1766729442690,-197.07566843,0.000169,2]
[399839873,1766729442699,-1009.0,0.000169,2]
[399839874,1766729442709,-1000.0,0.00016917,2]
[399839875,1766729442720,-500.0,0.00016918,2]
[399839876,1766729442743,-150.0,0.00016923,2]
[399839877,1766729442754,-500.0,0.00016946,2]
[399839878,1766729442764,-500.0,0.00016973,2]
[399839879,1766729442774,-150.0,0.00016973,2]
[399839880,1766729442784,-150.0,0.00016973,2]
[399839881,1766729442795,-293.0,0.00016986,2]
[399839882,1766729442805,-4252.98,0.00016986,2]
[399839883,1766729442816,-157.38311085,0.00016986,2]
[399839884,1766729442827,-155.15685309,0.00016986,2]
[399839885,1766729442836,-159.10512061,0.00016986,2]
[399839886,1766729442848,-155.98355596,0.00016986,2]
[399839887,1766729442858,-156.76302164,0.00016986,2]
[399839888,1766729442868,-151.77304176,0.00016986,2]
[399839889,1766729442879,-155.05161452,0.00016986,2]
[399839890,1766729442889,-152.57737944,0.00016986,2]
[399839891,1766729442899,-133255.5431152,0.00016995,2]
[399839892,1766729442909,-1876.286274,0.00016995,2]
[399839893,1766729442920,-3705.132875,0.00016995,2]
[399839894,1766729442929,-16724.7323497,0.00016995,2]
[399839895,1766729442939,-1115.57403938,0.00016999,5]
[399839896,1766729442949,-150.0,0.00016999,2]
[399839897,1766729442959,-150.0,0.00016999,2]
[399839898,1766729442970,-500.0,0.00016999,2]
[399839899,1766729442980,-516.96732434,0.00016999,2]
[399839900,1766729442989,-300.0,0.00016999,2]
[399839901,1766729442999,-1846846.01485533,0.00017,2]
[399839902,1766729443010,-1000.0,0.00017,2]
[399839903,1766729443020,-1000.0,0.00017,2]
[399839904,1766729443030,-1000.0,0.00017,2]
[399839905,1766729443039,-1000.0,0.00017,2]
[399839906,1766729443049,-1000.0,0.00017,2]
[399839907,1766729443059,-1000.0,0.00017,2]
[399839908,1766729443070,-1000.0,0.00017,2]
[399839909,1766729443080,-1000.0,0.00017,2]
[399839910,1766729443095,-1000.0,0.00017,2]
[399839911,1766729443106,-1000.0,0.00017,2]
[399839912,1766729443116,-1000.0,0.00017,2]
[399839913,1766729443127,-1000.0,0.00017,2]
[399839914,1766729443136,-1000.0,0.00017,2]
[399839915,1766729443147,-1000.0,0.00017,2]
[399839916,1766729443157,-1000.0,0.00017,2]
[399839917,1766729443167,-1000.0,0.00017,2]
[399839918,1766729443177,-1000.0,0.00017,2]
[399839919,1766729443187,-1000.0,0.00017,2]
[399839920,1766729443197,-1000.0,0.00017,2]
[399839921,1766729443207,-1000.0,0.00017,2]
[399839922,1766729443217,-1000.0,0.00017,2]
[399839923,1766729443227,-1000.0,0.00017,2]
[399839924,1766729443237,-1000.0,0.00017,2]
[399839925,1766729443247,-1000.0,0.00017,2]
[399839926,1766729443260,-1000.0,0.00017,2]
[399839927,1766729443271,-1000.0,0.00017,2]
[399839928,1766729443282,-1078.38362935,0.00017,2]
[399839929,1766729443292,-500.0,0.00017,2]
[399839930,1766729443303,-500.0,0.00017,2]
[399839931,1766729443314,-500.0,0.00017,2]
[399839932,1766729443325,-500.0,0.00017,2]
[399839933,1766729443337,-500.0,0.00017,2]
[399839934,1766729443347,-500.0,0.00017,2]
[399839935,1766729443358,-500.0,0.00017,2]
[399839936,1766729443368,-242.23575578,0.00017,2]
[399839937,1766729443378,-16116.57766897,0.00017,2]
[399839938,1766729443408,-412.8989822,0.00017,2]
[399839939,1766729443673,-1198.0,0.00016633,2]
[399839940,1766729443683,-405.16201082,0.000169,2]
[399839941,1766729443694,-56145.84867399,0.00017,2]
[399839944,1766729445661,-151.0,0.00015676,2]
[399839945,1766729445672,-297.6052628,0.00017,2]
[399839946,1766729445832,-518.799982,0.00017,2]
[399840045,1766729589694,251.83971442,0.000119,2]
[399840047,1766729706909,506.01528641,0.000119,2]
[399840048,1766729847866,154.83,7.474e-05,2]
[399840049,1766729848077,154.83,8.72e-05,2]
[399840050,1766729848278,154.83,9.965e-05,2]
[399840051,1766729848492,154.83,0.00011211,2]
[399840078,1766730579295,222.75401215,0.00014166,7]
[399840083,1766730586035,150.0,0.00012,2]
[399840107,1766730631805,-154.83,0.00012457,2]
[399840108,1766730631815,-181.969832,0.00013601,2]
[399840109,1766730631829,-166.66,0.00013604,2]
[399840110,1766730631839,-510.85946386,0.00013699,2]
[399840112,1766730631851,-489.14053614,0.00013699,2]
[399840113,1766730631861,-300.0,0.00013701,2]
[399840114,1766730631871,-579.65020457,0.00013701,2]
[399840115,1766730631883,-612.54757404,0.00013701,2]
[399840116,1766730631895,-7.80222139,0.00013701,2]
[399840117,1766730631905,-154.83,0.00013702,2]
[399840118,1766730631915,-250.0,0.00013702,2]
[399840119,1766730631925,-1852.42,0.00013819,2]
[399840120,1766730631936,-166.66,0.00013891,2]
[399840121,1766730631946,-5500.0,0.00014,3]
[399840122,1766730631956,-166.66,0.00014177,2]
[399840123,1766730631966,-150.0,0.00014364,2]
[399840124,1766730631975,-500.0,0.00014365,2]
[399840125,1766730631985,-500.0,0.00014365,2]
[399840126,1766730631995,-150.0,0.00014365,2]
[399840128,1766730632006,-500.0,0.00014365,2]
[399840130,1766730632020,-150.0,0.00014365,2]
[399840132,1766730632030,-500.0,0.00014365,2]
[399840134,1766730632041,-150.0,0.00014365,2]
[399840136,1766730632051,-150.0,0.00014365,2]
[399840137,1766730632060,-500.0,0.00014365,2]
[399840139,1766730632070,-500.0,0.00014365,2]
[399840141,1766730632080,-150.0,0.00014365,2]
[399840142,1766730632090,-500.0,0.00014392,2]
[399840144,1766730632100,-500.0,0.00014392,2]
[399840146,1766730632111,-224.36439977,0.00014392,2]
[399840148,1766730632121,-500.0,0.00014392,2]
[399840150,1766730632130,-150.0,0.00014392,2]
[399840151,1766730632140,-500.0,0.00014392,2]
[399840153,1766730632150,-150.0,0.00014392,2]
[399840155,1766730632160,-150.0,0.00014392,2]
[399840157,1766730632170,-506.76955547,0.00014392,2]
[399840159,1766730632180,-500.0,0.00014392,2]
[399840161,1766730632190,-150.0,0.00014392,2]
[399840163,1766730632200,-500.0,0.0001442,2]
[399840165,1766730632213,-274.79963008,0.0001442,2]
[399840166,1766730632223,-500.0,0.0001442,2]
[399840168,1766730632233,-150.0,0.0001442,2]
[399840170,1766730632243,-500.0,0.0001442,2]
[399840171,1766730632253,-150.0,0.0001442,2]
[399840173,1766730632263,-150.0,0.0001442,2]
[399840174,1766730632273,-283.88330882,0.0001442,2]
[399840175,1766730632283,-211.21504498,0.0001442,2]
[399840176,1766730632293,-500.0,0.00014447,2]
[399840177,1766730632302,-500.0,0.00014447,2]
[399840178,1766730632311,-150.0,0.00014447,2]
[399840179,1766730632322,-500.0,0.00014447,2]
[399840180,1766730632333,-150.0,0.00014447,2]
[399840181,1766730632343,-150.0,0.00014447,2]
[399840182,1766730632354,-1867.8794202,0.00014457,2]
[399840183,1766730632364,-500.0,0.00014462,2]
[399840184,1766730632374,-500.0,0.00014462,2]
[399840185,1766730632383,-500.0,0.00014462,2]
[399840186,1766730632393,-500.0,0.00014462,2]
[399840187,1766730632403,-500.0,0.00014462,2]
[399840188,1766730632413,-500.0,0.00014462,2]
[399840189,1766730632423,-500.0,0.00014462,2]
[399840190,1766730632433,-500.0,0.00014462,2]
[399840191,1766730632442,-500.0,0.00014462,2]
[399840192,1766730632452,-500.0,0.00014462,2]
[399840193,1766730632462,-500.0,0.00014462,2]
[399840194,1766730632473,-500.0,0.00014462,2]
[399840195,1766730632483,-445.25845189,0.00014462,2]
[399840196,1766730632493,-500.0,0.00014462,2]
[399840197,1766730632503,-500.0,0.00014462,2]
[399840198,1766730632513,-500.0,0.00014462,2]
[399840199,1766730632523,-500.0,0.00014462,2]
[399840200,1766730632533,-500.0,0.00014462,2]
[399840201,1766730632542,-279.32109975,0.00014462,2]
[399840202,1766730632553,-500.0,0.00014463,2]
[399840203,1766730632563,-166.66,0.00014463,2]
[399840204,1766730632573,-9999.99,0.00014463,2]
[399840205,1766730632583,-9999.99,0.00014463,2]
[399840206,1766730632605,-9999.99,0.00014463,2]
[399840207,1766730632617,-146.41686655,0.00014463,2]
[399840208,1766730632632,-4666.21162689,0.00014463,2]
[399840209,1766730632645,-861.87017049,0.00014463,2]
[399840210,1766730632658,-947.57531963,0.00014463,2]
[399840211,1766730632673,-1326.4511873,0.00014463,2]
[399840212,1766730632686,-551.30377218,0.00014463,2]
[399840213,1766730632716,-1500.16105696,0.00014463,2]
[399840214,1766730632727,-1531.65,0.00014463,2]
[399840215,1766730632737,-499.99,0.00014463,2]
[399840216,1766730632747,-999.99,0.00014463,2]
[399840217,1766730632757,-3874.51739594,0.00014463,2]
[399840218,1766730632773,-573.7219226,0.00014463,2]
[399840219,1766730632786,-5452.45343004,0.00014463,2]
[399840220,1766730633109,-99.29725142,0.00014463,2]
[399840221,1766730633125,-299.99,0.00014463,2]
[399840222,1766730633135,-425.3,0.00014463,2]
[399840223,1766730633146,-150.99,0.00014463,2]
[399840224,1766730633156,-12.70477543,0.00014463,2]
[399840225,1766730633168,-153.43522457,0.00014463,2]
[399840226,1766730633179,-734.68,0.00014463,2]
[399840227,1766730633188,-1369.78413048,0.00014463,2]
[399840228,1766730637825,-779.69310093,0.00014463,2]
[399840229,1766730637888,-821.0,0.00014463,2]
[399840230,1766730637900,-999.0,0.00014463,2]
[399840231,1766730638009,-3549.40743783,0.00014463,2]
[399840232,1766730638021,-2481.10533076,0.00014463,2]
[399840233,1766730638031,-4999.99,0.00014463,2]
[399840234,1766730638041,-150.99,0.00014463,2]
[399840235,1766730638052,-500.0,0.00014475,2]
[399840236,1766730638062,-551.95789067,0.00014475,2]